bitfinex/quotes_BTCUSD_20250124
["timestamp","ask_amount","ask_price","bid_price","bid_amount"]
[1737694578660,0.33213834,104510.0,104500.0,0.103693]
[1737694578862,0.42782234,104510.0,104500.0,0.008]
[1737694579062,0.33213834,104510.0,104500.0,0.103693]
[1737694579292,0.22656623,104510.0,104500.0,0.103693]
[1737694580047,0.33213834,104510.0,104500.0,0.103693]
[1737694580249,0.42782234,104510.0,104500.0,0.103693]
[1737694580453,1.12782234,104510.0,104500.0,0.103693]
[1737694580856,1.03213834,104510.0,104500.0,0.103693]
[1737694581082,1.12782234,104510.0,104500.0,0.103693]
[1737694582648,0.92656623,104510.0,104500.0,0.095693]
[1737694582861,0.92656623,104510.0,104500.0,0.096693]
[1737694583113,0.92656623,104510.0,104500.0,0.100693]
[1737694585587,0.22656623,104510.0,104500.0,0.100693]
[1737694586400,0.22656623,104510.0,104500.0,0.640793]
[1737694587026,0.12921894,104510.0,104500.0,0.640793]
[1737694587872,0.00461894,104510.0,104500.0,0.640793]
[1737694588970,0.00029862,104510.0,104500.0,0.640793]
[1737694593547,0.00029862,104510.0,104500.0,0.65051033]
[1737694594208,0.00029862,104510.0,104500.0,0.68007481]
[1737694595116,0.00029862,104510.0,104500.0,0.65051033]
[1737694602414,0.00029862,104510.0,104500.0,0.68006314]
[1737694603133,0.00029862,104510.0,104500.0,0.67606314]
[1737694603389,0.00029862,104510.0,104500.0,0.67506314]
[1737694603600,0.00029862,104510.0,104500.0,0.67806314]
[1737694604657,0.00029862,104510.0,104500.0,0.65751033]
[1737694605266,0.00029862,104510.0,104500.0,0.68706383]
[1737694606162,0.00029862,104510.0,104500.0,0.65751033]
[1737694607544,0.00029862,104510.0,104500.0,0.68707095]
[1737694608526,0.00029862,104510.0,104500.0,0.65751033]
[1737694609094,0.00029862,104510.0,104500.0,0.68707122]
[1737694609435,0.00029862,104510.0,104500.0,0.65751033]
[1737694609772,0.00029862,104510.0,104500.0,0.68707057]
[1737694610388,0.00029862,104510.0,104500.0,0.65751033]
[1737694610594,0.07949862,104510.0,104500.0,0.65751033]
[1737694610794,0.12739862,104510.0,104500.0,0.65751033]
[1737694611167,0.00029862,104510.0,104500.0,0.65751033]
[1737694611366,0.00029862,104510.0,104500.0,0.76308244]
[1737694611566,0.00029862,104510.0,104500.0,0.79263961]
[1737694615101,0.00029862,104510.0,104500.0,0.9732869]
[1737694615702,0.00029862,104510.0,104500.0,0.9832869]
[1737694615963,0.00029862,104510.0,104500.0,1.0032869]
[1737694617393,0.00029862,104510.0,104500.0,0.9942869]
[1737694617533,0.00029862,104510.0,104500.0,0.9912869]
[1737694617731,0.00029862,104510.0,104500.0,1.0142869]
[1737694617946,0.00029862,104510.0,104500.0,1.0182869]
[1737694618140,0.00029862,104510.0,104500.0,1.0272869]
[1737694618340,0.00029862,104510.0,104500.0,1.0737869]
[1737694618977,0.00029862,104510.0,104500.0,2.2600869]
[1737694620636,6.2e-07,104510.0,104500.0,2.2792982]
[1737694621052,6.2e-07,104510.0,104500.0,2.2462982]
[1737694621234,6.2e-07,104510.0,104500.0,1.99092609]
[1737694621435,6.2e-07,104510.0,104500.0,2.09607835]
[1737694621718,6.2e-07,104510.0,104500.0,1.97873106]
[1737694622496,0.13059862,104520.0,104510.0,0.095684]
[1737694622497,0.13032988,104520.0,104510.0,0.095684]
[1737694622698,0.13032988,104520.0,104510.0,0.66534117]
[1737694623167,2.988e-05,104520.0,104510.0,0.86826057]
[1737694623771,7.938e-05,104520.0,104510.0,0.86826057]
[1737694624011,7.938e-05,104520.0,104510.0,0.87726057]
[1737694624215,7.938e-05,104520.0,104510.0,0.88026057]
[1737694626579,7.938e-05,104520.0,104510.0,0.95686057]
[1737694627913,3.8e-07,104520.0,104510.0,1.00986057]
[1737694628320,0.00029904,104540.0,104530.0,0.20123811]
[1737694628497,0.0003485,104540.0,104530.0,0.32814257]
[1737694629989,0.0003485,104540.0,104530.0,0.33714257]
[1737694630411,0.0003485,104540.0,104530.0,0.41374257]
[1737694630817,0.0003485,104540.0,104530.0,0.43674257]
[1737694631024,0.0003485,104540.0,104530.0,0.95684257]
[1737694631216,0.0003485,104540.0,104530.0,0.88024257]
[1737694631358,0.0003485,104540.0,104530.0,0.90024257]
[1737694631564,0.0003485,104540.0,104530.0,0.88024257]
[1737694631776,0.0003485,104540.0,104530.0,0.89724257]
[1737694631979,0.0003485,104540.0,104530.0,1.03024257]
[1737694632659,0.0003485,104540.0,104530.0,1.02124257]
[1737694633019,0.0003485,104540.0,104530.0,0.92467046]
[1737694635353,0.0003485,104540.0,104530.0,0.93442253]
[1737694637185,0.0776485,104540.0,104530.0,0.68707524]
[1737694637408,0.1271485,104540.0,104530.0,0.65751807]
[1737694637590,0.1271485,104540.0,104530.0,0.647766]
[1737694638498,0.1271485,104540.0,104530.0,0.797766]
[1737694640871,0.1271485,104540.0,104530.0,0.785766]
[1737694641300,0.1271485,104540.0,104530.0,0.787766]
[1737694642427,0.1271485,104540.0,104530.0,0.794766]
[1737694644364,0.0003485,104540.0,104530.0,0.90033811]
[1737694644625,0.0003485,104540.0,104530.0,0.794766]
[1737694645032,0.0003485,104540.0,104530.0,0.90033811]
[1737694645245,0.0003485,104540.0,104530.0,1.02717729]
[1737694647114,0.0003485,104540.0,104530.0,1.09557729]
[1737694647320,0.0003485,104540.0,104530.0,1.10457729]
[1737694647509,0.0003485,104540.0,104530.0,1.10257729]
[1737694647910,0.0003485,104540.0,104530.0,1.10457729]
[1737694650396,5e-07,104540.0,104530.0,2.34387729]
[1737694651709,5e-07,104540.0,104530.0,2.33287729]
[1737694651996,5e-07,104540.0,104530.0,2.18787729]
[1737694652190,5e-07,104540.0,104530.0,2.18287729]
[1737694652465,3.3e-07,104550.0,104540.0,0.38252911]
[1737694652729,0.02860095,104580.0,104570.0,0.095629]
[1737694652970,0.00029883,104590.0,104580.0,0.11562]
[1737694653230,0.00029883,104600.0,104590.0,0.095611]
[1737694653512,0.00029883,104600.0,104590.0,0.2985304]
[1737694653765,0.00079377,104600.0,104590.0,0.8586304]
[1737694653984,0.00079377,104600.0,104590.0,1.7743418]
[1737694654440,0.00079377,104600.0,104590.0,1.7449304]
[1737694656157,0.00079377,104600.0,104590.0,1.7519304]
[1737694656788,0.00079377,104600.0,104590.0,1.76161161]
[1737694657871,7.7e-07,104600.0,104590.0,1.89661161]
[1737694658078,7.7e-07,104600.0,104590.0,1.92592568]
[1737694659161,7.7e-07,104600.0,104590.0,1.95400737]
[1737694659861,7.7e-07,104600.0,104590.0,1.89460737]
[1737694660088,7.7e-07,104600.0,104590.0,1.52069221]
[1737694660317,0.08130077,104600.0,104590.0,1.52069221]
[1737694660540,0.08130077,104600.0,104590.0,1.62626432]
[1737694660758,7.7e-07,104600.0,104590.0,1.72361161]
[1737694661184,7.7e-07,104600.0,104590.0,1.74661161]
[1737694661413,7.7e-07,104600.0,104590.0,1.77661161]
[1737694662456,7.7e-07,104600.0,104590.0,1.76517161]
[1737694662880,7.7e-07,104600.0,104590.0,1.79441209]
[1737694663117,7.7e-07,104600.0,104590.0,1.76517161]
[1737694663325,7.7e-07,104600.0,104590.0,1.75517161]
[1737694663743,7.7e-07,104600.0,104590.0,1.21487161]
[1737694664389,0.00029862,104620.0,104610.0,0.02]
[1737694664648,0.00029862,104620.0,104610.0,0.98733216]
[1737694664649,3.923e-05,104620.0,104610.0,0.98733216]
[1737694665814,3.923e-05,104620.0,104610.0,0.99633216]
[1737694666280,3.923e-05,104620.0,104610.0,1.00633216]
[1737694666491,3.923e-05,104620.0,104610.0,0.99733216]
[1737694666733,3.923e-05,104620.0,104610.0,0.99633216]
[1737694667202,3.923e-05,104620.0,104610.0,1.00633216]
[1737694667429,3.923e-05,104620.0,104610.0,1.00133216]
[1737694667855,3.923e-05,104620.0,104610.0,1.01550036]
[1737694668062,3.923e-05,104620.0,104610.0,1.02050036]
[1737694668692,3.923e-05,104620.0,104610.0,1.00050036]
[1737694668908,3.923e-05,104620.0,104610.0,0.87192825]
[1737694669129,3.923e-05,104620.0,104610.0,0.89192825]
[1737694669548,3.923e-05,104620.0,104610.0,0.87192825]
[1737694670329,0.07803923,104620.0,104610.0,0.86269252]
[1737694670953,0.07803923,104620.0,104610.0,0.65977312]
[1737694671658,0.07803923,104620.0,104610.0,0.87091734]
[1737694671853,0.07803923,104620.0,104610.0,0.76534523]
[1737694672062,0.07803923,104620.0,104610.0,0.75134523]
[1737694672525,0.07803923,104620.0,104610.0,0.76034523]
[1737694673455,0.07803923,104620.0,104610.0,0.76434523]
[1737694673666,0.07803923,104620.0,104610.0,0.86169252]
[1737694673911,3.923e-05,104620.0,104610.0,0.96726463]
[1737694674775,3.923e-05,104620.0,104610.0,0.99026463]
[1737694678490,3.923e-05,104620.0,104610.0,1.01949103]
[1737694678899,3.923e-05,104620.0,104610.0,0.99026463]
[1737694679263,3.923e-05,104620.0,104610.0,1.01948975]
[1737694679687,3.923e-05,104620.0,104610.0,1.01648975]
[1737694680779,3.923e-05,104620.0,104610.0,0.89091764]
[1737694681427,3.923e-05,104620.0,104610.0,0.89121605]
[1737694689865,3.923e-05,104620.0,104610.0,0.79386876]
[1737694691739,0.07703923,104620.0,104610.0,0.68829665]
[1737694691999,0.07703923,104620.0,104610.0,0.79386876]
[1737694692257,0.07703923,104620.0,104610.0,0.68829665]
[1737694692470,0.12473923,104620.0,104610.0,0.68829665]
[1737694693431,0.12473923,104620.0,104610.0,0.79386876]
[1737694696047,0.12473923,104620.0,104610.0,0.89121605]
[1737694697141,0.12473923,104620.0,104610.0,0.68829665]
[1737694697567,0.12473923,104620.0,104610.0,0.79386876]
[1737694699204,0.12473923,104620.0,104610.0,0.68829665]
[1737694700007,0.12473923,104620.0,104610.0,0.89121605]
[1737694700008,3.923e-05,104620.0,104610.0,0.89121605]
[1737694700808,0.07719883,104650.0,104620.0,0.1093]
[1737694701050,0.07719883,104650.0,104640.0,0.20113711]
[1737694701271,0.07719883,104650.0,104640.0,0.32770952]
[1737694702137,0.00029883,104650.0,104640.0,0.86780952]
[1737694702583,0.00029883,104650.0,104640.0,0.87680952]
[1737694702850,0.00029883,104650.0,104640.0,0.87780952]
[1737694703973,0.00021106,104650.0,104640.0,0.87780952]
[1737694704382,0.00021106,104650.0,104640.0,0.86780952]
[1737694704563,0.00021106,104650.0,104640.0,0.86980952]
[1737694705165,0.00021106,104650.0,104640.0,0.96196178]
[1737694705421,0.00021106,104650.0,104640.0,0.95596178]
[1737694705630,0.00021106,104650.0,104640.0,1.06153389]
[1737694705820,0.00021106,104650.0,104640.0,1.07053389]
[1737694706019,0.00021106,104650.0,104640.0,0.96496178]
[1737694706268,0.00021106,104650.0,104640.0,0.97459689]
[1737694711131,0.00021106,104650.0,104640.0,0.86902478]
[1737694711755,0.00021106,104650.0,104640.0,0.83979966]
[1737694712007,0.00021106,104650.0,104640.0,0.98979966]
[1737694712265,0.00021106,104650.0,104640.0,1.09537177]
[1737694712943,0.00021106,104650.0,104640.0,1.03958972]
[1737694713152,0.00021106,104650.0,104640.0,1.01021951]
[1737694713981,0.00021106,104650.0,104640.0,1.03958426]
[1737694716206,0.00021106,104650.0,104640.0,0.88958426]
[1737694716742,0.00021106,104650.0,104640.0,1.09345637]
[1737694716938,0.00021106,104650.0,104640.0,2.27975637]
[1737694717171,0.13,104680.0,104670.0,0.095538]
[1737694718312,0.13,104680.0,104670.0,0.10568565]
[1737694718519,0.13,104680.0,104670.0,0.30860505]
[1737694718917,0.0001421,104710.0,104700.0,0.09551]
[1737694719143,0.00442639,104710.0,104700.0,0.09551]
[1737694719324,0.70442639,104710.0,104700.0,0.09551]
[1737694719521,0.83322639,104710.0,104700.0,0.09551]
[1737694719718,0.13322639,104710.0,104700.0,0.09551]
[1737694721640,0.13322639,104710.0,104700.0,0.09951]
[1737694723308,0.2387985,104710.0,104700.0,0.09951]
[1737694723730,0.2387985,104710.0,104700.0,0.09551]
[1737694724143,0.2387985,104710.0,104700.0,0.10251]
[1737694725177,0.2387985,104710.0,104700.0,0.10351]
[1737694725384,0.3342995,104710.0,104700.0,0.008]
[1737694725591,0.43164679,104710.0,104700.0,0.008]
[1737694726009,0.52899408,104710.0,104700.0,0.008]
[1737694726233,0.45877509,104710.0,104700.0,0.008]
[1737694726448,0.43164679,104710.0,104700.0,0.007]
[1737694726887,0.1237,104690.0,104680.0,0.286569]
[1737694727088,0.22927211,104690.0,104680.0,0.286569]
[1737694727285,0.23355745,104690.0,104680.0,0.286569]
[1737694728364,0.23355745,104690.0,104680.0,0.293569]
[1737694729283,0.32907745,104690.0,104680.0,0.007]
[1737694729499,0.42642474,104690.0,104680.0,0.102529]
[1737694729889,0.42642474,104690.0,104680.0,0.007]
[1737694732494,0.0797,104680.0,104670.0,0.2844418]
[1737694732759,0.28690465,104680.0,104670.0,0.2844418]
[1737694733546,0.28690465,104680.0,104670.0,0.2854418]
[1737694733937,0.28690465,104680.0,104670.0,0.2944418]
[1737694736339,0.51191522,104680.0,104670.0,0.01]
[1737694736544,0.43063365,104680.0,104670.0,0.01]
[1737694738837,0.55904881,104680.0,104670.0,0.009]
[1737694739024,1.28906293,104680.0,104670.0,0.009]
[1737694739239,1.34018868,104680.0,104670.0,0.009]
[1737694739491,1.23820678,104680.0,104670.0,0.009]
[1737694739909,0.221547,104660.0,104650.0,0.00029841]
[1737694740120,0.43074717,104660.0,104650.0,0.09600214]
[1737694740326,0.43074717,104660.0,104650.0,0.00044614]
[1737694741275,1.2959185,104660.0,104650.0,0.00044614]
[1737694741510,1.1244664,104660.0,104650.0,0.00044614]
[1737694742496,1.1244664,104660.0,104650.0,0.09600214]
[1737694742808,1.13077748,104660.0,104650.0,0.09600214]
[1737694743050,1.13177748,104660.0,104650.0,0.10300214]
[1737694743315,1.13077748,104660.0,104650.0,0.09600214]
[1737694743554,0.92965837,104660.0,104650.0,0.09600214]
[1737694743793,1.03523048,104660.0,104650.0,0.10000214]
[1737694743994,0.13231108,104660.0,104650.0,0.10000214]
[1737694744719,0.00631108,104660.0,104650.0,0.64010214]
[1737694744960,0.00428331,104660.0,104650.0,0.10100214]
[1737694745204,0.00428331,104660.0,104650.0,0.09700214]
[1737694745448,0.00428331,104660.0,104650.0,0.17330214]
[1737694745710,0.00635871,104660.0,104650.0,0.17330214]
[1737694745971,0.0815421,104690.0,104680.0,0.095529]
[1737694746236,0.7001421,104690.0,104680.0,0.095529]
[1737694746531,0.0001421,104690.0,104680.0,0.095529]
[1737694746987,0.0001421,104690.0,104680.0,0.19287629]
[1737694747230,0.0001421,104690.0,104680.0,0.73397629]
[1737694747231,0.0061421,104690.0,104680.0,0.73397629]
[1737694747465,0.0001421,104690.0,104680.0,0.74348554]
[1737694747676,0.0011421,104690.0,104680.0,0.85605765]
[1737694748092,0.0041421,104690.0,104680.0,0.74348554]
[1737694748515,0.0011421,104690.0,104680.0,0.76028709]
[1737694748717,0.0021421,104690.0,104680.0,0.76928709]
[1737694749353,0.0021421,104690.0,104680.0,0.8758592]
[1737694749560,0.0021421,104690.0,104680.0,0.77028709]
[1737694749776,0.0021421,104690.0,104680.0,0.89265751]
[1737694749975,0.0021421,104690.0,104680.0,0.7870854]
[1737694750238,0.0021421,104690.0,104680.0,0.79698525]
[1737694750844,0.0021421,104690.0,104680.0,0.78018694]
[1737694751476,0.0021421,104690.0,104680.0,0.88575905]
[1737694751926,0.0021421,104690.0,104680.0,0.78018694]
[1737694753017,0.0001421,104690.0,104680.0,0.77118694]
[1737694753442,0.0011421,104690.0,104680.0,0.78018694]
[1737694753770,0.0001421,104690.0,104680.0,0.77018694]
[1737694753974,0.0011421,104690.0,104680.0,0.77918694]
[1737694754180,0.0011421,104690.0,104680.0,0.78218694]
[1737694754385,0.0011421,104690.0,104680.0,0.77318694]
[1737694754603,0.0011421,104690.0,104680.0,0.77918694]
[1737694754806,0.0021421,104690.0,104680.0,0.77918694]
[1737694755012,0.0021421,104690.0,104680.0,0.78218694]
[1737694756035,0.0021421,104690.0,104680.0,0.68483965]
[1737694756474,0.00642887,104690.0,104680.0,0.68483965]
[1737694756917,0.0021421,104690.0,104680.0,0.68483965]
[1737694758156,0.0021421,104690.0,104680.0,0.6749398]
[1737694758626,0.0021421,104690.0,104680.0,0.1348398]
[1737694759414,0.0121421,104690.0,104680.0,0.1348398]
[1737694759626,0.0121421,104690.0,104680.0,0.11803825]
[1737694759868,0.2971615,104690.0,104680.0,0.11803825]
[1737694760412,0.2961615,104690.0,104680.0,0.10603825]
[1737694760615,0.2951615,104690.0,104680.0,0.10603825]
[1737694760819,0.2951615,104690.0,104680.0,0.106529]
[1737694761038,0.2951615,104690.0,104680.0,0.097529]
[1737694761244,0.2951615,104690.0,104680.0,0.095529]
[1737694761437,0.2951615,104690.0,104680.0,0.104529]
[1737694761641,0.2951615,104690.0,104680.0,0.105529]
[1737694762020,0.45338165,104690.0,104680.0,0.105529]
[1737694762232,0.45338165,104690.0,104680.0,0.01]
[1737694762647,0.48235995,104690.0,104680.0,0.01]
[1737694764564,0.4671598,104690.0,104680.0,0.01]
[1737694764868,0.4381815,104690.0,104680.0,0.01]
[1737694765719,0.4381815,104690.0,104680.0,0.001]
[1737694766171,0.4421815,104690.0,104680.0,0.001]
[1737694766610,0.095529,104680.0,104670.0,0.28691041]
[1737694766807,0.19287629,104680.0,104670.0,0.09583541]
[1737694768669,0.09734729,104680.0,104670.0,0.09583541]
[1737694769064,0.19287629,104680.0,104670.0,0.09583541]
[1737694769293,0.39579569,104680.0,104670.0,0.00029841]
[1737694769490,0.2984484,104680.0,104670.0,0.00029841]
[1737694769717,0.2984484,104680.0,104670.0,0.00629841]
[1737694769896,0.3813484,104680.0,104670.0,0.00629841]
[1737694770291,0.3813484,104680.0,104670.0,0.10183641]
[1737694770987,0.3813484,104680.0,104670.0,0.00029841]
[1737694771214,0.47869569,104680.0,104670.0,0.00329841]
[1737694771416,0.52749569,104680.0,104670.0,0.00329841]
[1737694772612,1.22749569,104680.0,104670.0,0.00329841]
[1737694773888,1.23749569,104680.0,104670.0,0.00329841]
[1737694774082,1.26647399,104680.0,104670.0,0.00329841]
[1737694774288,1.1401484,104680.0,104670.0,0.00329841]
[1737694775346,1.1301484,104680.0,104670.0,0.00329841]
[1737694775760,1.1399289,104680.0,104670.0,0.00329841]
[1737694776340,1.34435574,104680.0,104670.0,0.00329841]
[1737694776546,1.44170303,104680.0,104670.0,0.00329841]
[1737694777911,1.45170303,104680.0,104670.0,0.00329841]
[1737694778080,1.22878363,104680.0,104670.0,0.00329841]
[1737694778284,1.20578363,104680.0,104670.0,0.00329841]
[1737694780090,1.1789072,104680.0,104670.0,0.00329841]
[1737694780995,1.1919072,104680.0,104670.0,0.00329841]
[1737694781251,1.28925449,104680.0,104670.0,0.00329841]
[1737694783041,1.21878363,104680.0,104670.0,0.00329841]
[1737694786708,1.32435574,104680.0,104670.0,0.00329841]
[1737694786908,1.32449784,104680.0,104670.0,0.00329841]
[1737694787125,1.21892573,104680.0,104670.0,0.00329841]
[1737694787774,1.23892573,104680.0,104670.0,0.00329841]
[1737694787982,1.33627302,104680.0,104670.0,0.00329841]
[1737694788185,1.44184513,104680.0,104670.0,0.00329841]
[1737694788604,0.19587211,104660.0,104650.0,0.28711214]
[1737694788809,1.0393194,104660.0,104650.0,0.28711214]
[1737694789027,1.0682977,104660.0,104650.0,0.28711214]
[1737694789987,1.0682977,104660.0,104650.0,0.29711214]
[1737694791975,1.0582977,104660.0,104650.0,0.29711214]
[1737694792201,0.79734729,104660.0,104650.0,0.29711214]
[1737694794359,0.9029194,104660.0,104650.0,0.29711214]
[1737694797231,0.79734729,104660.0,104650.0,0.29711214]
[1737694797876,0.79734729,104660.0,104650.0,0.37911214]
[1737694798132,0.7,104660.0,104650.0,0.37911214]
[1737694799717,1.05897661,104660.0,104650.0,0.29711214]
[1737694799963,1.15452361,104660.0,104650.0,0.01044614]
[1737694800493,1.34939572,104660.0,104650.0,0.01044614]
[1737694800770,1.40525045,104660.0,104650.0,0.00484898]
[1737694801011,0.2693343,104650.0,104640.0,0.00029841]
[1737694801226,1.3951731,104650.0,104640.0,0.0004462]
[1737694801685,0.31672822,104620.0,104610.0,0.08545067]
[1737694801923,0.31672822,104620.0,104610.0,0.00044648]
[1737694801924,0.44305381,104620.0,104610.0,0.00044648]
[1737694802405,1.14305381,104620.0,104610.0,0.00044648]
[1737694802638,0.9985034,104620.0,104610.0,0.00044648]
[1737694803142,0.9985034,104620.0,104610.0,0.00544648]
[1737694803643,0.9985034,104620.0,104610.0,0.10095124]
[1737694803866,0.9029194,104620.0,104610.0,0.10095124]
[1737694804148,0.9985034,104620.0,104610.0,0.10095124]
[1737694804356,0.9985034,104620.0,104610.0,0.00535824]
[1737694804690,0.9985034,104620.0,104610.0,0.10095124]
[1737694804935,0.9985034,104620.0,104610.0,0.00535824]
[1737694805539,0.9985034,104620.0,104610.0,0.00527021]
[1737694805749,1.02256162,104620.0,104610.0,0.00527021]
[1737694806008,1.0085034,104620.0,104610.0,0.00527021]
[1737694806557,0.9985034,104620.0,104610.0,0.00527021]
[1737694807194,1.0085034,104620.0,104610.0,0.00527021]
[1737694807829,1.0095034,104620.0,104610.0,0.00527021]
[1737694808245,0.9995034,104620.0,104610.0,0.00527021]
[1737694808460,0.9995034,104620.0,104610.0,0.00027021]
[1737694809334,0.9995034,104620.0,104610.0,0.00227021]
[1737694810207,1.10685069,104620.0,104610.0,0.00227021]
[1737694810413,1.0095034,104620.0,104610.0,0.00227021]
[1737694811344,0.9995034,104620.0,104610.0,0.00227021]
[1737694811566,1.0095034,104620.0,104610.0,0.00227021]
[1737694812723,0.9995034,104620.0,104610.0,0.00227021]
[1737694812940,0.701,104620.0,104610.0,0.72116321]
[1737694813178,0.001,104620.0,104610.0,0.72116321]
[1737694813406,0.001,104620.0,104610.0,0.92408261]
[1737694813632,0.001,104620.0,104610.0,0.8681105]
[1737694813853,0.001,104620.0,104610.0,0.98420201]
[1737694814072,0.001,104620.0,104610.0,0.78128261]
[1737694814289,0.10557211,104650.0,104620.0,0.191152]
[1737694814519,0.2029194,104650.0,104640.0,0.095565]
[1737694814733,0.9029194,104650.0,104640.0,0.635665]
[1737694815663,0.2029194,104650.0,104640.0,0.635665]
[1737694815883,0.36655747,104650.0,104640.0,0.635665]
[1737694816099,0.36655747,104650.0,104640.0,0.639665]
[1737694816316,0.39553577,104650.0,104640.0,0.5441]
[1737694816528,1.38938449,104650.0,104640.0,0.5441]
[1737694816736,1.20573031,104650.0,104640.0,0.5441]
[1737694816990,1.21573031,104650.0,104640.0,0.5441]
[1737694817192,1.20573031,104650.0,104640.0,0.5441]
[1737694817371,1.1568537,104650.0,104640.0,0.5441]
[1737694817793,1.1588537,104650.0,104640.0,0.5441]
[1737694818209,1.1568537,104650.0,104640.0,0.639665]
[1737694818418,1.1598537,104650.0,104640.0,0.639665]
[1737694818622,1.1308754,104650.0,104640.0,0.635665]
[1737694818824,1.1308754,104650.0,104640.0,0.5401]
[1737694819128,1.1308754,104650.0,104640.0,0.635665]
[1737694819368,1.1318754,104650.0,104640.0,0.635665]
[1737694819585,0.80134729,104650.0,104640.0,0.636665]
[1737694819804,1.0024754,104650.0,104640.0,0.5411]
[1737694820030,1.0024754,104650.0,104640.0,0.636665]
[1737694820240,0.9069194,104650.0,104640.0,0.636665]
[1737694820459,0.80148959,104650.0,104640.0,0.636665]
[1737694821070,0.9070617,104650.0,104640.0,0.096565]
[1737694821268,0.80148959,104650.0,104640.0,0.096565]
[1737694821442,0.10148959,104650.0,104640.0,0.096565]
[1737694822692,0.10148959,104650.0,104640.0,0.222565]
[1737694824254,0.10148959,104650.0,104640.0,0.173665]
[1737694825021,0.10148959,104650.0,104640.0,0.096565]
[1737694825244,0.3328928,104650.0,104640.0,0.001]
[1737694826479,1.1230928,104650.0,104640.0,0.001]
[1737694827082,1.0828177,104650.0,104640.0,0.001]
[1737694827939,0.9872617,104650.0,104640.0,0.096565]
[1737694828385,1.0828177,104650.0,104640.0,0.001]
[1737694829072,1.1538177,104650.0,104640.0,0.001]
[1737694829292,0.095584,104620.0,104610.0,0.00027021]
[1737694829522,0.2985034,104620.0,104610.0,0.00027021]
[1737694830453,0.3085034,104620.0,104610.0,0.00027021]
[1737694831107,0.3095034,104620.0,104610.0,0.00027021]
[1737694831333,0.9995034,104620.0,104610.0,0.00027021]
[1737694831565,0.9995034,104620.0,104610.0,0.09586321]
[1737694831694,0.9995034,104620.0,104610.0,0.00127021]
[1737694831937,0.9995034,104620.0,104610.0,0.09686321]
[1737694831938,0.79834729,104620.0,104610.0,0.09686321]
[1737694832356,0.89393129,104620.0,104610.0,0.09686321]
[1737694832587,0.79834729,104620.0,104610.0,0.09686321]
[1737694833462,0.9995034,104620.0,104610.0,0.09686321]
[1737694833635,0.9039194,104620.0,104610.0,0.09686321]
[1737694833911,0.2039194,104620.0,104610.0,0.09686321]
[1737694834114,0.001,104620.0,104610.0,0.09686321]
[1737694835403,0.2995034,104620.0,104610.0,0.09686321]
[1737694835547,0.2039194,104620.0,104610.0,0.09686321]
[1737694837564,0.2995034,104620.0,104610.0,0.00127021]
[1737694838186,0.3748034,104620.0,104610.0,0.00127021]
[1737694838400,1.0748034,104620.0,104610.0,0.00127021]
[1737694840091,0.9995034,104620.0,104610.0,0.00127021]
[1737694842558,0.9995034,104620.0,104610.0,0.09686321]
[1737694843057,0.9039194,104620.0,104610.0,0.09686321]
[1737694843693,0.9995034,104620.0,104610.0,0.00127021]
[1737694844362,1.09685069,104620.0,104610.0,0.00127021]
[1737694844796,0.9995034,104620.0,104610.0,0.00127021]
[1737694847525,1.0093732,104620.0,104610.0,0.00127021]
[1737694849154,0.9995034,104620.0,104610.0,0.09686321]
[1737694849807,0.9985034,104620.0,104610.0,0.09686321]
[1737694850035,0.9985034,104620.0,104610.0,0.09586321]
[1737694850036,0.9029194,104620.0,104610.0,0.09586321]
[1737694850262,0.7,104620.0,104610.0,0.09586321]
[1737694850484,0.80557211,104620.0,104610.0,0.09986321]
[1737694850713,0.10557211,104620.0,104610.0,0.09986321]
[1737694850935,0.10553211,104620.0,104610.0,0.09986321]
[1737694852060,0.10557211,104630.0,104620.0,0.436743]
[1737694852322,0.9029194,104630.0,104620.0,0.436743]
[1737694853466,0.9984934,104630.0,104620.0,0.436743]
[1737694853705,0.9039194,104630.0,104620.0,0.437743]
[1737694857065,0.9994934,104630.0,104620.0,0.246577]
[1737694857528,0.9994934,104630.0,104620.0,0.151]
[1737694858547,0.9994934,104630.0,104620.0,0.246584]
[1737694859367,0.9994934,104630.0,104620.0,0.151]
[1737694860963,0.79834729,104630.0,104620.0,0.246584]
[1737694862894,0.9039194,104630.0,104620.0,0.246584]
[1737694863111,0.2994934,104630.0,104620.0,0.151]
[1737694863281,0.4368934,104630.0,104620.0,0.001]
[1737694863487,0.4598934,104630.0,104620.0,0.001]
[1737694863690,1.25724069,104630.0,104620.0,0.001]
[1737694864735,0.20115611,104620.0,104610.0,0.69019761]
[1737694864984,0.9985034,104620.0,104610.0,0.69019761]
[1737694865203,1.0817034,104620.0,104610.0,0.69019761]
[1737694865634,1.0817034,104620.0,104610.0,0.15009761]
[1737694866482,1.17905069,104620.0,104610.0,9.761e-05]
[1737694866784,1.17905069,104620.0,104610.0,0.00409761]
[1737694866992,1.0817034,104620.0,104610.0,0.00409761]
[1737694867358,1.19727551,104620.0,104610.0,0.00409761]
[1737694867591,1.28669453,104620.0,104610.0,0.00409761]
[1737694867797,1.31251814,104620.0,104610.0,0.00409761]
[1737694868511,1.31251814,104620.0,104610.0,0.00039644]
[1737694868731,1.31251814,104620.0,104610.0,0.00139644]
[1737694868732,1.44286543,104620.0,104610.0,0.00139644]
[1737694869164,1.42286543,104620.0,104610.0,0.00139644]
[1737694869829,1.43690543,104620.0,104610.0,0.00139644]
[1737694870276,1.30973453,104620.0,104610.0,0.00139644]
[1737694871162,1.31973453,104620.0,104610.0,0.00139644]
[1737694871388,1.30569453,104620.0,104610.0,0.00139644]
[1737694871806,1.29569453,104620.0,104610.0,0.00139644]
[1737694872045,1.29669453,104620.0,104610.0,0.00139644]
[1737694872271,1.31469453,104620.0,104610.0,0.00139644]
[1737694872474,1.31369453,104620.0,104610.0,0.00139644]
[1737694872763,1.31569453,104620.0,104610.0,0.00039644]
[1737694872967,1.31469453,104620.0,104610.0,0.00139644]
[1737694873215,1.29903299,104620.0,104610.0,0.00139644]
[1737694873474,1.28903299,104620.0,104610.0,0.00139644]
[1737694873717,1.30803299,104620.0,104610.0,0.00139644]
[1737694873951,1.29103299,104620.0,104610.0,0.00039644]
[1737694874374,1.28103299,104620.0,104610.0,0.00039644]
[1737694874642,1.26867551,104620.0,104610.0,0.00039644]
[1737694874882,1.1931034,104620.0,104610.0,0.00039644]
[1737694875115,1.1301034,104620.0,104610.0,0.00039644]
[1737694875341,1.1381034,104620.0,104610.0,0.00139644]
[1737694875564,1.1471034,104620.0,104610.0,0.00139644]
[1737694876580,0.9199194,104620.0,104610.0,0.15139644]
[1737694876824,0.81434729,104620.0,104610.0,0.78708944]
[1737694877062,0.717,104620.0,104610.0,0.86638944]
[1737694877268,0.008,104620.0,104610.0,0.86638944]
[1737694878375,0.0001423,104630.0,104620.0,0.095584]
[1737694878561,0.09748959,104630.0,104620.0,0.095584]
[1737694878901,0.09748959,104630.0,104620.0,0.635684]
[1737694879585,0.0001423,104630.0,104620.0,0.785684]
[1737694879804,0.0001423,104630.0,104620.0,0.913784]
[1737694880033,0.0041423,104630.0,104620.0,0.913784]